fUST/lending_fUST_20240312
["ID","MTS","AMOUNT","RATE_DAILY","PERIOD"]
[318353983,1710192641004,-499.6797313,0.00015497,2]
[318353984,1710192641015,-500.0,0.00015497,2]
[318353985,1710192641025,-500.0,0.00015497,2]
[318353986,1710192641034,-561.02,0.00015497,2]
[318353987,1710192641043,-500.0,0.00015497,2]
[318353988,1710192641052,-500.0,0.00015497,2]
[318353989,1710192641061,-500.0,0.00015497,2]
[318353990,1710192641071,-222.33042281,0.00015497,2]
[318353991,1710192641081,-500.0,0.00015497,2]
[318353992,1710192641090,-501.3,0.00015497,2]
[318353993,1710192641099,-501.3,0.00015497,2]
[318353994,1710192641108,-500.0,0.00015497,2]
[318353995,1710192641117,-516.04717866,0.00015497,2]
[318353996,1710192641126,-500.0,0.00015497,2]
[318353997,1710192641134,-888.95,0.00015497,2]
[318353998,1710192641143,-888.95,0.00015497,2]
[318353999,1710192641153,-584.63,0.00015497,2]
[318354000,1710192641163,-584.63,0.00015497,2]
[318354001,1710192641174,-500.0,0.00015497,2]
[318354002,1710192641183,-500.0,0.00015497,2]
[318354003,1710192641192,-500.0,0.00015497,2]
[318354004,1710192641204,-500.0,0.00015497,2]
[318354005,1710192641213,-502.36460615,0.00015497,2]
[318354006,1710192641222,-500.0,0.00015497,2]
[318354007,1710192641231,-500.0,0.00015497,2]
[318354008,1710192641240,-500.0,0.00015497,2]
[318354009,1710192641249,-500.0,0.00015497,2]
[318354010,1710192641259,-500.0,0.00015497,2]
[318354011,1710192641268,-500.0,0.00015497,2]
[318354012,1710192641277,-272.71,0.00015497,2]
[318354013,1710192641286,-278.17980074,0.00015497,2]
[318354014,1710192641295,-737.2,0.00015497,2]
[318354015,1710192641305,-737.2,0.00015497,2]
[318354016,1710192641314,-34.23365035,0.00015498,2]
[318354017,1710192641323,-294.83074187,0.00015498,2]
[318354018,1710192641333,-269.72761582,0.00015498,2]
[318354019,1710192641342,-155.29875134,0.00015498,2]
[318354020,1710192641351,-644.75959855,0.00015498,2]
[318354021,1710192641361,-155.15360207,0.00015498,2]
[318354022,1710192641371,-155.15360207,0.00015498,2]
[318354023,1710192641380,-155.15515516,0.00015498,2]
[318354024,1710192641389,-204.73653582,0.00015498,2]
[318354025,1710192641398,-250.06723573,0.00015498,2]
[318354026,1710192641406,-156.13402214,0.00015498,2]
[318354027,1710192641415,-231.94391532,0.00015498,2]
[318354028,1710192641425,-155.15826125,0.00015498,2]
[318354029,1710192641434,-206.16735028,0.00015498,2]
[318354030,1710192641446,-3227.38654331,0.00015498,2]
[318354031,1710192641455,-1471.81677667,0.00015498,2]
[318354032,1710192641464,-703.96157741,0.00015498,2]
[318354033,1710192641474,-8000.0,0.00015498,2]
[318354034,1710192641485,-557.48155237,0.00015498,2]
[318354035,1710192641494,-155.38772312,0.00015498,2]
[318354036,1710192641503,-155.40656809,0.00015498,2]
[318354037,1710192641513,-155.42293478,0.00015498,2]
[318354038,1710192641523,-220.69028228,0.00015498,2]
[318354039,1710192641532,-165.65027406,0.00015498,2]
[318354040,1710192641541,-596.30466146,0.00015498,2]
[318354041,1710192641550,-191.04097841,0.00015498,2]
[318354042,1710192641560,-445.99943925,0.00015498,2]
[318354043,1710192641570,-309.94253509,0.00015498,2]
[318354044,1710192641579,-323.07350108,0.00015498,2]
[318354045,1710192641589,-160.39636044,0.00015498,2]
[318354046,1710192641599,-574.05039444,0.00015498,2]
[318354047,1710192641609,-435.67590417,0.00015498,2]
[318354048,1710192641619,-1524.56782846,0.00015498,2]
[318354049,1710192641629,-1881.65756627,0.00015498,2]
[318354050,1710192641641,-927.97428513,0.00015498,2]
[318354051,1710192641651,-5577.181826,0.00015498,2]
[318354052,1710192641660,-500.0,0.00015498,2]
[318354053,1710192641670,-500.0,0.00015498,2]
[318354054,1710192641681,-500.0,0.00015498,2]
[318354055,1710192641690,-500.0,0.00015498,2]
[318354056,1710192641699,-500.0,0.00015498,2]
[318354057,1710192641708,-151.0,0.00015498,2]
[318354058,1710192641718,-151.0,0.00015498,2]
[318354059,1710192641728,-500.0,0.00015498,2]
[318354060,1710192641738,-500.0,0.00015498,2]
[318354061,1710192641747,-500.0,0.00015498,2]
[318354062,1710192641830,-269.25991252,0.00015498,2]
[318354063,1710192641839,-524.12330327,0.00015498,2]
[318354064,1710192641850,-643.06947887,0.00015498,2]
[318354065,1710192641860,-171.37999187,0.00015498,2]
[318354066,1710192641869,-349.9350307,0.00015498,2]
[318354067,1710192641879,-1503.71787399,0.00015498,2]
[318354068,1710192641888,-431.65365626,0.00015498,2]
[318354069,1710192641897,-179.439937,0.00015498,2]
[318354070,1710192641906,-3548.68761506,0.00015498,2]
[318354071,1710192641915,-290.48375637,0.00015498,2]
[318354072,1710192641924,-500.0,0.00015498,2]
[318354073,1710192641933,-519.23317726,0.00015498,2]
[318354074,1710192641942,-622.79128065,0.00015498,2]
[318354075,1710192641952,-404.17148736,0.00015498,2]
[318354076,1710192641962,-500.0,0.00015498,2]
[318354077,1710192641972,-500.0,0.00015498,2]
[318354078,1710192641982,-561.02,0.00015498,2]
[318354079,1710192641992,-561.02,0.00015498,2]
[318354080,1710192642001,-561.02,0.00015498,2]
[318354081,1710192642012,-500.0,0.00015498,2]
[318354082,1710192642023,-500.0,0.00015498,2]
[318354083,1710192642032,-501.3,0.00015498,2]
[318354084,1710192642041,-501.3,0.00015498,2]
[318354085,1710192642051,-500.0,0.00015498,2]
[318354086,1710192642060,-500.0,0.00015498,2]
[318354087,1710192642069,-888.95,0.00015498,2]
[318354088,1710192642079,-888.95,0.00015498,2]
[318354089,1710192642088,-584.63,0.00015498,2]
[318354090,1710192642097,-584.63,0.00015498,2]
[318354091,1710192642106,-500.0,0.00015498,2]
[318354092,1710192642116,-500.0,0.00015498,2]
[318354093,1710192642125,-500.0,0.00015498,2]
[318354094,1710192642134,-500.0,0.00015498,2]
[318354095,1710192642143,-500.0,0.00015498,2]
[318354096,1710192642152,-500.0,0.00015498,2]
[318354097,1710192642163,-500.0,0.00015498,2]
[318354098,1710192642173,-500.0,0.00015498,2]
[318354099,1710192642183,-500.0,0.00015498,2]
[318354100,1710192642193,-500.0,0.00015498,2]
[318354101,1710192642204,-500.0,0.00015498,2]
[318354102,1710192642214,-737.2,0.00015498,2]
[318354103,1710192642224,-737.2,0.00015498,2]
[318354104,1710192642233,-98676.42106226,0.00015499,2]
[318354105,1710192642242,-500.0,0.00015499,2]
[318354106,1710192642252,-500.0,0.00015499,2]
[318354107,1710192642261,-637.73749432,0.00015499,2]
[318354108,1710192642270,-151.0,0.00015499,2]
[318354109,1710192642280,-151.0,0.00015499,2]
[318354110,1710192642289,-151.0,0.00015499,2]
[318354111,1710192642298,-151.0,0.00015499,2]
[318354112,1710192642307,-151.0,0.00015499,2]
[318354113,1710192642316,-151.0,0.00015499,2]
[318354114,1710192642325,-151.0,0.00015499,2]
[318354115,1710192642334,-500.0,0.00015499,2]
[318354116,1710192642345,-500.0,0.00015499,2]
[318354117,1710192642353,-500.0,0.00015499,2]
[318354118,1710192642364,-241.42,0.00015499,2]
[318354119,1710192642373,-500.0,0.00015499,2]
[318354120,1710192642383,-500.0,0.00015499,2]
[318354121,1710192642392,-561.02,0.00015499,2]
[318354122,1710192642401,-561.02,0.00015499,2]
[318354123,1710192642410,-561.02,0.00015499,2]
[318354124,1710192642420,-561.02,0.00015499,2]
[318354125,1710192642429,-561.02,0.00015499,2]
[318354126,1710192642438,-561.02,0.00015499,2]
[318354127,1710192642448,-561.02,0.00015499,2]
[318354128,1710192642457,-561.02,0.00015499,2]
[318354129,1710192642467,-561.02,0.00015499,2]
[318354130,1710192642476,-561.02,0.00015499,2]
[318354131,1710192642485,-561.02,0.00015499,2]
[318354132,1710192642494,-561.02,0.00015499,2]
[318354133,1710192642503,-561.16496008,0.00015499,2]
[318354134,1710192642513,-500.0,0.00015499,2]
[318354135,1710192642523,-500.0,0.00015499,2]
[318354136,1710192642532,-500.0,0.00015499,2]
[318354137,1710192642542,-500.0,0.00015499,2]
[318354138,1710192642552,-500.0,0.00015499,2]
[318354139,1710192642561,-259.45531949,0.00015499,2]
[318354140,1710192642571,-501.3,0.00015499,2]
[318354141,1710192642580,-501.3,0.00015499,2]
[318354142,1710192642590,-501.3,0.00015499,2]
[318354143,1710192642600,-501.3,0.00015499,2]
[318354144,1710192642609,-501.3,0.00015499,2]
[318354145,1710192642618,-501.3,0.00015499,2]
[318354146,1710192642627,-501.3,0.00015499,2]
[318354147,1710192642636,-501.3,0.00015499,2]
[318354148,1710192642649,-501.3,0.00015499,2]
[318354149,1710192642658,-501.3,0.00015499,2]
[318354150,1710192642667,-501.3,0.00015499,2]
[318354151,1710192642678,-501.3,0.00015499,2]
[318354152,1710192642687,-501.3,0.00015499,2]
[318354153,1710192642696,-501.4020682,0.00015499,2]
[318354154,1710192642706,-888.95,0.00015499,2]
[318354155,1710192642715,-888.95,0.00015499,2]
[318354156,1710192642725,-888.95,0.00015499,2]
[318354157,1710192642735,-888.95,0.00015499,2]
[318354158,1710192642744,-888.95,0.00015499,2]
[318354159,1710192642754,-888.95,0.00015499,2]
[318354160,1710192642764,-584.63,0.00015499,2]
[318354161,1710192642773,-888.95,0.00015499,2]
[318354162,1710192642781,-584.63,0.00015499,2]
[318354163,1710192642790,-888.95,0.00015499,2]
[318354164,1710192642800,-584.63,0.00015499,2]
[318354165,1710192642809,-888.95,0.00015499,2]
[318354166,1710192642818,-584.63,0.00015499,2]
[318354167,1710192642827,-584.63,0.00015499,2]
[318354168,1710192642838,-888.95,0.00015499,2]
[318354169,1710192642848,-584.63,0.00015499,2]
[318354170,1710192642859,-888.95,0.00015499,2]
[318354171,1710192642882,-584.63,0.00015499,2]
[318354172,1710192642893,-888.95,0.00015499,2]
[318354173,1710192642902,-584.63,0.00015499,2]
[318354174,1710192642911,-889.0248052,0.00015499,2]
[318354175,1710192642920,-584.63,0.00015499,2]
[318354176,1710192642929,-584.63,0.00015499,2]
[318354177,1710192642938,-584.63,0.00015499,2]
[318354179,1710192642948,-584.63,0.00015499,2]
[318354181,1710192642958,-584.63,0.00015499,2]
[318354182,1710192642967,-584.67,0.00015499,2]
[318354183,1710192642976,-500.0,0.00015499,2]
[318354184,1710192642986,-500.0,0.00015499,2]
[318354185,1710192642995,-500.0,0.00015499,2]
[318354186,1710192643005,-500.0,0.00015499,2]
[318354187,1710192643014,-500.0,0.00015499,2]
[318354188,1710192643023,-500.0,0.00015499,2]
[318354189,1710192643032,-216.90606651,0.00015499,2]
[318354190,1710192643041,-500.0,0.00015499,2]
[318354191,1710192643050,-500.0,0.00015499,2]
[318354193,1710192643060,-500.0,0.00015499,2]
[318354195,1710192643069,-500.0,0.00015499,2]
[318354197,1710192643078,-500.0,0.00015499,2]
[318354199,1710192643087,-500.0,0.00015499,2]
[318354201,1710192643097,-568.96717848,0.00015499,2]
[318354203,1710192643106,-500.0,0.00015499,2]
[318354205,1710192643114,-500.0,0.00015499,2]
[318354208,1710192643123,-500.0,0.00015499,2]
[318354210,1710192643133,-500.0,0.00015499,2]
[318354213,1710192643142,-500.0,0.00015499,2]
[318354216,1710192643151,-500.0,0.00015499,2]
[318354219,1710192643160,-500.0,0.00015499,2]
[318354220,1710192643170,-500.0,0.00015499,2]
[318354222,1710192643179,-500.0,0.00015499,2]
[318354223,1710192643187,-500.0,0.00015499,2]
[318354225,1710192643197,-500.0,0.00015499,2]
[318354227,1710192643205,-500.0,0.00015499,2]
[318354229,1710192643215,-500.0,0.00015499,2]
[318354230,1710192643224,-500.0,0.00015499,2]
[318354231,1710192643233,-500.0,0.00015499,2]
[318354233,1710192643242,-500.0,0.00015499,2]
[318354234,1710192643252,-500.0,0.00015499,2]
[318354235,1710192643261,-500.0,0.00015499,2]
[318354236,1710192643270,-500.0,0.00015499,2]
[318354237,1710192643279,-500.0,0.00015499,2]
[318354238,1710192643288,-648.13,0.00015499,2]
[318354240,1710192643298,-382.8618171,0.00015499,2]
[318354241,1710192643307,-500.0,0.00015499,2]
[318354243,1710192643317,-500.0,0.00015499,2]
[318354245,1710192643326,-500.0,0.00015499,2]
[318354246,1710192643336,-500.0,0.00015499,2]
[318354248,1710192643346,-484.68,0.00015499,2]
[318354250,1710192643356,-627.73719419,0.000155,2]
[318354254,1710192643372,-2163.43126643,0.000155,2]
[318354257,1710192643383,-3433.11429943,0.000155,2]
[318354258,1710192643395,-705.39713821,0.000155,2]
[318354259,1710192643406,-644.44286179,0.000155,2]
[318354273,1710192643680,-500.0,0.00015398,2]
[318354274,1710192643690,-737.2,0.00015499,2]
[318354276,1710192643700,-737.2,0.00015499,2]
[318354277,1710192643710,-737.2,0.00015499,2]
[318354278,1710192643723,-737.2,0.00015499,2]
[318354279,1710192643733,-737.2,0.00015499,2]
[318354280,1710192643744,-737.2,0.00015499,2]
[318354281,1710192643754,-737.2,0.00015499,2]
[318354282,1710192643764,-193016.16116638,0.000155,2]
[318354283,1710192643791,-737.2,0.00015499,2]
[318354284,1710192643800,-1692.14906446,0.000155,2]
[318354285,1710192643812,-6920.72058762,0.000155,2]
[318354286,1710192643847,-338.86419644,0.000155,2]
[318354287,1710192643858,-2024.71679781,0.000155,2]
[318354303,1710192646956,-737.2,0.00015499,2]
[318354304,1710192646965,-737.2,0.00015499,2]
[318354305,1710192646974,-737.2,0.00015499,2]
[318354306,1710192646983,-737.2,0.00015499,2]
[318354307,1710192646993,-737.25061809,0.00015499,2]
[318354308,1710192647003,-63906.64479117,0.000155,2]
[318354309,1710192647014,-878.92675256,0.000155,2]
[318354310,1710193243088,-3686.0,0.00013907,2]
[318354413,1710193831846,-155.13962566,0.00012241,2]
[318354414,1710193831857,-250.0,0.00012242,2]
[318354415,1710193831867,-1000.0,0.00012901,2]
[318354416,1710193831877,-1000.0,0.00013005,2]
[318354417,1710193831886,-44.8919391,0.00013029,2]
[318354418,1710193831898,-955.1080609,0.00013029,2]
[318354419,1710193831907,-2605.512209,0.00013165,2]
[318354420,1710193831917,-300.0,0.00013194,2]
[318354421,1710193831927,-24900.0,0.00013195,2]
[318354422,1710193831936,-2327.9387962,0.00013413,2]
[318354423,1710193831945,-3000.0,0.00013699,2]
[318354424,1710193831955,-532.852167,0.00013699,2]
[318354425,1710193831966,-1000.0,0.00013823,2]
[318354426,1710193831980,-651.74368271,0.00013852,2]
[318354427,1710193832088,-894.2456118,0.00014104,2]
[318354428,1710193832099,-202.25268222,0.000149,2]
[318354429,1710193832107,-1000.0,0.00015352,2]
[318354430,1710193832118,-500.0,0.00015398,2]
[318354431,1710193832128,-500.0,0.00015398,2]
[318354432,1710193832139,-501.54342069,0.00015398,2]
[318354433,1710193832150,-500.0,0.00015398,2]
[318354434,1710193832160,-500.0,0.00015398,2]
[318354435,1710193832169,-477.39797374,0.00015398,2]
[318354436,1710193832178,-366.35129438,0.00015398,2]
[318354437,1710193832187,-500.0,0.00015398,2]
[318354438,1710193832196,-500.0,0.00015398,2]
[318354439,1710193832206,-500.0,0.00015398,2]
[318354440,1710193832214,-500.0,0.00015398,2]
[318354441,1710193832224,-500.0,0.00015398,2]
[318354442,1710193832233,-500.0,0.00015398,2]
[318354443,1710193832242,-500.0,0.00015398,2]
[318354444,1710193832251,-500.0,0.00015398,2]
[318354445,1710193832260,-500.0,0.00015398,2]
[318354446,1710193832269,-500.0,0.00015398,2]
[318354447,1710193832279,-500.0,0.00015399,2]
[318354448,1710193832288,-500.0,0.00015399,2]
[318354449,1710193832297,-500.0,0.00015399,2]
[318354450,1710193832306,-581.58143205,0.00015399,2]
[318354451,1710193832315,-500.0,0.00015399,2]
[318354452,1710193832326,-500.0,0.00015399,2]
[318354453,1710193832336,-500.0,0.00015399,2]
[318354454,1710193832345,-500.0,0.00015399,2]
[318354455,1710193832354,-500.0,0.00015399,2]
[318354456,1710193832364,-500.0,0.00015399,2]
[318354457,1710193832373,-500.0,0.00015399,2]
[318354458,1710193832382,-500.0,0.00015399,2]
[318354459,1710193832392,-500.0,0.00015399,2]
[318354460,1710193832401,-500.0,0.00015399,2]
[318354461,1710193832410,-500.0,0.00015399,2]
[318354462,1710193832419,-485.19739756,0.00015399,2]
[318354463,1710193832428,-500.0,0.00015399,2]
[318354464,1710193832437,-500.0,0.00015399,2]
[318354465,1710193832446,-339.51927293,0.00015399,2]
[318354466,1710193832455,-500.0,0.00015399,2]
[318354467,1710193832464,-500.0,0.00015399,2]
[318354468,1710193832474,-500.0,0.00015399,2]
[318354469,1710193832482,-500.0,0.00015399,2]
[318354470,1710193832491,-500.0,0.00015399,2]
[318354471,1710193832501,-500.0,0.00015399,2]
[318354472,1710193832511,-500.0,0.00015399,2]
[318354473,1710193832520,-500.0,0.00015399,2]
[318354474,1710193832529,-233.69962835,0.00015495,2]
[318354475,1710193832539,-500.0,0.00015495,2]
[318354476,1710193832548,-500.0,0.00015495,2]
[318354477,1710193832557,-500.0,0.00015495,2]
[318354478,1710193832566,-500.0,0.00015497,2]
[318354479,1710193832575,-500.0,0.00015497,2]
[318354480,1710193832585,-500.0,0.00015497,2]
[318354481,1710193832594,-500.0,0.00015497,2]
[318354482,1710193832603,-500.0,0.00015497,2]
[318354483,1710193832613,-500.0,0.00015497,2]
[318354484,1710193832623,-2114.85760717,0.00015498,2]
[318354485,1710193832633,-624.23888742,0.00015498,2]
[318354486,1710193832642,-404.45303566,0.00015498,2]
[318354487,1710193832652,-179.69289793,0.00015498,2]
[318354488,1710193832661,-1881.65756627,0.00015498,2]
[318354489,1710193832671,-204.73653582,0.00015498,2]
[318354490,1710193832680,-500.0,0.00015498,2]
[318354491,1710193832689,-500.0,0.00015498,2]
[318354492,1710193832698,-500.0,0.00015498,2]
[318354493,1710193832707,-500.0,0.00015498,2]
[318354494,1710193832717,-500.0,0.00015498,2]
[318354495,1710193832726,-500.0,0.00015498,2]
[318354496,1710193832735,-155.15049598,0.00015498,2]
[318354497,1710193832746,-561.337233,0.00015498,2]
[318354498,1710193832755,-500.0,0.00015498,2]
[318354499,1710193832764,-500.0,0.00015498,2]
[318354500,1710193832774,-186.68406057,0.00015499,2]
[318354501,1710193832783,-155.15541533,0.00015499,2]
[318354502,1710193832793,-9206.35842999,0.00015499,2]
[318354503,1710193832802,-6478.99018417,0.00015499,2]
[318354504,1710193832811,-500.0,0.00015499,2]
[318354505,1710193832820,-500.0,0.00015499,2]
[318354506,1710193832830,-304.57944979,0.00015499,2]
[318354507,1710193832839,-500.0,0.00015499,2]
[318354508,1710193832848,-500.0,0.00015499,2]
[318354509,1710193832856,-500.0,0.00015499,2]
[318354510,1710193832866,-500.0,0.00015499,2]
[318354511,1710193832875,-500.0,0.00015499,2]
[318354512,1710193832884,-500.0,0.00015499,2]
[318354513,1710193832893,-404.61232071,0.00015499,2]
[318354514,1710193832904,-500.0,0.00015499,2]
[318354515,1710193832914,-500.0,0.00015499,2]
[318354516,1710193832923,-500.0,0.00015499,2]
[318354517,1710193832932,-500.0,0.00015499,2]
[318354518,1710193832940,-500.0,0.00015499,2]
[318354519,1710193832951,-500.0,0.00015499,2]
[318354520,1710193832960,-500.0,0.00015499,2]
[318354521,1710193832969,-374.70593551,0.00015499,2]
[318354522,1710193832979,-500.0,0.00015499,2]
[318354523,1710193832995,-500.0,0.00015499,2]
[318354524,1710193833006,-500.0,0.00015499,2]
[318354525,1710193833015,-500.0,0.00015499,2]
[318354526,1710193833027,-500.0,0.00015499,2]
[318354527,1710193833037,-356.43,0.00015499,2]
[318354528,1710193833047,-500.0,0.00015499,2]
[318354529,1710193833057,-500.0,0.00015499,2]
[318354530,1710193833067,-500.0,0.00015499,2]
[318354531,1710193833077,-500.0,0.00015499,2]
[318354532,1710193833087,-500.0,0.00015499,2]
[318354533,1710193833095,-500.0,0.00015499,2]
[318354534,1710193833104,-500.0,0.00015499,2]
[318354535,1710193833113,-500.0,0.00015499,2]
[318354536,1710193833122,-210.97450618,0.00015499,2]
[318354537,1710193833135,-289.02549382,0.00015499,2]
[318354538,1710193833143,-500.0,0.00015499,2]
[318354539,1710193833152,-500.0,0.00015499,2]
[318354540,1710193833161,-500.0,0.00015499,2]
[318354541,1710193833171,-513.65551979,0.00015499,2]
[318354542,1710193833180,-500.0,0.00015499,2]
[318354543,1710193833189,-500.0,0.00015499,2]
[318354544,1710193833198,-500.0,0.00015499,2]
[318354545,1710193833207,-500.0,0.00015499,2]
[318354546,1710193833218,-500.0,0.00015499,2]
[318354547,1710193833227,-186.05061809,0.00015499,2]
[318354548,1710193833236,-17989.56852866,0.000155,2]
[318354549,1710193833249,-28285.27475673,0.000155,2]
[318354550,1710193833260,-6005.95503175,0.000155,2]
[318354583,1710193837715,-33183.36124609,0.000155,2]
[318354925,1710193841691,-72390.97170402,0.000155,2]
[318355410,1710193846676,-207.3619626,0.00015499,2]
[318355412,1710193846686,-28446.79445392,0.000155,2]
[318355691,1710194477999,18733.66,0.0002288,40]
[318355692,1710194767010,-204.73653582,0.00013691,2]
[318355693,1710194767065,-384.821041,0.00013699,2]
[318355694,1710194767126,-15765.30747701,0.0001408,2]
[318355695,1710194780587,-155.13807288,0.0001369,2]
[318355696,1710194780620,-9134.69252299,0.0001408,2]
[318355697,1710194780652,-3000.0,0.00014157,2]
[318355698,1710194780685,-171.07958362,0.00015345,2]
[318355699,1710194780716,-494.27122985,0.00015399,2]
[318355700,1710194780749,-494.27122984,0.00015399,2]
[318355701,1710194780779,-494.27122984,0.000154,2]
[318355702,1710194780812,-494.27122984,0.000154,2]
[318355703,1710194780845,-1916.86995497,0.000154,2]
[318355743,1710194811572,-152.88053647,0.00015398,2]
[318355744,1710194811603,-909.37851021,0.000154,2]
[318355745,1710194811636,-5000.0,0.000154,2]
[318355746,1710194811666,-2295.32704469,0.000154,2]
[318355747,1710194811792,-155.13807288,0.000154,2]
[318355748,1710194811825,-2000.0,0.0001544,2]
[318355749,1710194811856,-500.0,0.00015498,2]
[318355750,1710194811888,-528.03784127,0.00015498,2]
[318355751,1710194811919,-596.19717157,0.00015498,2]
[318355752,1710194811952,-500.0,0.00015498,2]
[318355753,1710194811983,-179.69289793,0.00015498,2]
[318355754,1710194812015,-155.15204901,0.00015498,2]
[318355755,1710194812048,-1080.91906796,0.00015498,2]
[318355756,1710194812079,-310.22338182,0.00015498,2]
[318355757,1710194812110,-1991.91848002,0.00015498,2]
[318355833,1710195033311,-337.995241,0.00014651,2]
[318355835,1710195033321,-646.32683631,0.00014755,2]
[318355837,1710195033331,-1640.13914669,0.000154,2]
[318355839,1710195033345,-621.31634182,0.00015493,2]
[318355841,1710195033355,-122.93912715,0.00015498,2]
[318355843,1710195033365,-325.84919186,0.00015498,2]
[318355845,1710195033374,-197.67761353,0.00015498,2]
[318355848,1710195033384,-703.96157741,0.00015498,2]
[318355851,1710195033393,-1881.65756627,0.00015498,2]
[318355853,1710195033402,-404.25795967,0.00015498,2]
[318355855,1710195033411,-7345.25383802,0.00015498,2]
[318355857,1710195033420,-1951.55607231,0.00015498,2]
[318355860,1710195033432,-500.0,0.00015498,2]
[318355863,1710195033441,-500.0,0.00015498,2]
[318355865,1710195033450,-500.0,0.00015498,2]
[318355867,1710195033459,-500.0,0.00015498,2]
[318355869,1710195033469,-500.5355469,0.00015498,2]
[318355871,1710195033478,-500.66722012,0.00015498,2]
[318355873,1710195033487,-360.67000945,0.00015498,2]
[318355875,1710195033496,-500.0,0.00015498,2]
[318355877,1710195033505,-159.81354822,0.00015498,2]
[318355879,1710195033514,-200.43083038,0.00015498,2]
[318355881,1710195033523,-500.0,0.00015498,2]
[318355883,1710195033533,-500.0,0.00015498,2]
[318355885,1710195033542,-155.13807288,0.00015498,2]
[318355887,1710195033550,-500.0,0.00015498,2]
[318355888,1710195033560,-196.47164973,0.00015498,2]
[318355890,1710195033569,-500.0,0.00015498,2]
[318355891,1710195033578,-500.0,0.00015498,2]
[318355893,1710195033587,-500.0,0.00015498,2]
[318355895,1710195033596,-592.4,0.00015498,2]
[318355897,1710195033605,-592.4,0.00015498,2]
[318355899,1710195033614,-592.4,0.00015498,2]
[318355901,1710195033623,-500.0,0.00015498,2]
[318355903,1710195033633,-500.0,0.00015498,2]
[318355905,1710195033642,-500.0,0.00015498,2]
[318355907,1710195033652,-500.0,0.00015498,2]
[318355909,1710195033661,-500.0,0.00015498,2]
[318355911,1710195033671,-500.0,0.00015498,2]
[318355913,1710195033680,-331.88,0.00015498,2]
[318355915,1710195033689,-500.42764645,0.00015498,2]
[318355917,1710195033699,-500.0,0.00015498,2]
[318355919,1710195033708,-500.0,0.00015498,2]
[318355921,1710195033717,-500.0,0.00015498,2]
[318355923,1710195033727,-500.0,0.00015498,2]
[318355925,1710195033736,-500.0,0.00015498,2]
[318355927,1710195033745,-500.0,0.00015498,2]
[318355929,1710195033754,-500.0,0.00015498,2]
[318355931,1710195033763,-500.0,0.00015499,2]
[318355933,1710195033774,-501.14268212,0.00015499,2]
[318355935,1710195033783,-500.0,0.00015499,2]
[318355937,1710195033792,-500.04444639,0.00015499,2]
[318355939,1710195033801,-500.0,0.00015499,2]
[318355941,1710195033810,-500.0,0.00015499,2]
[318355943,1710195033819,-424.32,0.00015499,2]
[318355944,1710195033829,-500.0,0.00015499,2]
[318355946,1710195033838,-592.4,0.00015499,2]
[318355948,1710195033848,-592.4,0.00015499,2]
[318355949,1710195033857,-592.4,0.00015499,2]
[318355950,1710195033869,-592.4,0.00015499,2]
[318355951,1710195033878,-592.4,0.00015499,2]
[318355952,1710195033887,-592.4,0.00015499,2]
[318355953,1710195033897,-592.4,0.00015499,2]
[318355954,1710195033906,-592.4,0.00015499,2]